fUST/lending_fUST_20250719
["ID","MTS","AMOUNT","RATE_DAILY","PERIOD"]
[373209477,1752907843646,-460.0,0.00016986,2]
[373209478,1752907843656,-362.99024277,0.00016986,2]
[373209479,1752907843665,-639.44,0.00016986,2]
[373209480,1752907843675,-460.0,0.00016986,2]
[373209481,1752907843684,-460.0,0.00016986,2]
[373209482,1752907843694,-460.0,0.00016986,2]
[373209483,1752907843703,-460.0,0.00016986,2]
[373209484,1752907843714,-460.0,0.00016986,2]
[373209485,1752907843724,-460.0,0.00016986,2]
[373209486,1752907843735,-460.0,0.00016986,2]
[373209487,1752907843745,-460.0,0.00016986,2]
[373209488,1752907843754,-460.0,0.00016986,2]
[373209489,1752907843764,-460.0,0.00016986,2]
[373209490,1752907843774,-460.0,0.00016986,2]
[373209491,1752907843783,-460.0,0.00016986,2]
[373209492,1752907843793,-460.0,0.00016986,2]
[373209493,1752907843803,-460.0,0.00016986,2]
[373209494,1752907843812,-192.01727641,0.00016986,2]
[373209495,1752907843822,-460.0,0.00016986,2]
[373209496,1752907843832,-460.0,0.00016986,2]
[373209498,1752907843842,-460.0,0.00016986,2]
[373209499,1752907843851,-460.0,0.00016986,2]
[373209501,1752907843860,-460.0,0.00016986,2]
[373209503,1752907843870,-460.0,0.00016986,2]
[373209506,1752907843880,-460.0,0.00016986,2]
[373209507,1752907843889,-460.0,0.00016986,2]
[373209509,1752907843899,-460.0,0.00016986,2]
[373209512,1752907843909,-460.0,0.00016986,2]
[373209514,1752907843918,-460.0,0.00016986,2]
[373209516,1752907843930,-460.0,0.00016986,2]
[373209518,1752907843940,-460.0,0.00016986,2]
[373209520,1752907843949,-462.97202314,0.00016986,2]
[373209522,1752907843959,-460.0,0.00016986,2]
[373209523,1752907843968,-460.0,0.00016986,2]
[373209525,1752907843977,-460.0,0.00016986,2]
[373209527,1752907843988,-460.0,0.00016986,2]
[373209528,1752907843997,-601.95269625,0.00016986,2]
[373209529,1752907844007,-460.0,0.00016986,2]
[373209530,1752907844016,-460.0,0.00016986,2]
[373209531,1752907844025,-460.0,0.00016986,2]
[373209532,1752907844035,-461.28372431,0.00016986,2]
[373209533,1752907844044,-460.0,0.00016986,2]
[373209534,1752907844054,-460.0,0.00016986,2]
[373209535,1752907844063,-460.0,0.00016986,2]
[373209536,1752907844073,-460.0,0.00016986,2]
[373209537,1752907844082,-460.0,0.00016986,2]
[373209538,1752907844091,-460.0,0.00016986,2]
[373209539,1752907844101,-460.0,0.00016986,2]
[373209540,1752907844111,-460.0,0.00016986,2]
[373209541,1752907844120,-460.0,0.00016986,2]
[373209542,1752907844130,-460.0,0.00016986,2]
[373209543,1752907844139,-460.0,0.00016986,2]
[373209544,1752907844148,-460.0,0.00016986,2]
[373209545,1752907844158,-460.0,0.00016986,2]
[373209546,1752907844167,-460.0,0.00016986,2]
[373209547,1752907844177,-460.0,0.00016986,2]
[373209548,1752907844186,-460.0,0.00016986,2]
[373209549,1752907844196,-460.0,0.00016986,2]
[373209550,1752907844205,-460.0,0.00016986,2]
[373209551,1752907844214,-575.94,0.00016986,2]
[373209552,1752907844228,-460.0,0.00016986,2]
[373209554,1752907844239,-460.0,0.00016986,2]
[373209556,1752907844248,-460.0,0.00016986,2]
[373209558,1752907844258,-400.57995673,0.00016986,2]
[373209560,1752907844268,-460.0,0.00016986,2]
[373209562,1752907844277,-460.0,0.00016986,2]
[373209564,1752907844287,-460.0,0.00016986,2]
[373209566,1752907844298,-460.0,0.00016986,2]
[373209568,1752907844307,-460.0,0.00016986,2]
[373209570,1752907844317,-460.0,0.00016986,2]
[373209572,1752907844327,-460.0,0.00016986,2]
[373209574,1752907844336,-460.0,0.00016986,2]
[373209576,1752907844345,-460.0,0.00016986,2]
[373209578,1752907844355,-460.0,0.00016986,2]
[373209580,1752907844364,-460.0,0.00016986,2]
[373209582,1752907844373,-460.0,0.00016986,2]
[373209584,1752907844384,-460.0,0.00016986,2]
[373209586,1752907844393,-460.0,0.00016986,2]
[373209588,1752907844402,-508.05,0.00016986,2]
[373209590,1752907844412,-464.66216789,0.00016986,2]
[373209591,1752907844421,-460.0,0.00016986,2]
[373209593,1752907844431,-460.0,0.00016986,2]
[373209595,1752907844441,-473.74515998,0.00016986,2]
[373209597,1752907844450,-3168.93,0.00016986,2]
[373209599,1752907844459,-465.17679717,0.00016986,2]
[373209601,1752907844469,-460.0,0.00016986,2]
[373209603,1752907844479,-460.0,0.00016986,2]
[373209604,1752907844489,-460.0,0.00016986,2]
[373209606,1752907844499,-3148.5,0.00016986,2]
[373209608,1752907844508,-460.0,0.00016986,2]
[373209610,1752907844518,-629.76,0.00016986,2]
[373209612,1752907844527,-499.24,0.00016986,2]
[373209613,1752907844537,-460.0,0.00016986,2]
[373209614,1752907844547,-792.23,0.00016986,2]
[373209616,1752907844556,-460.0,0.00016986,2]
[373209618,1752907844566,-460.0,0.00016986,2]
[373209620,1752907844575,-460.0,0.00016986,2]
[373209622,1752907844585,-460.0,0.00016986,2]
[373209624,1752907844594,-460.0,0.00016986,2]
[373209626,1752907844604,-460.0,0.00016986,2]
[373209628,1752907844614,-460.0,0.00016986,2]
[373209630,1752907844623,-588.5,0.00016986,2]
[373209632,1752907844632,-460.0,0.00016986,2]
[373209634,1752907844643,-460.0,0.00016986,2]
[373209636,1752907844652,-460.0,0.00016986,2]
[373209638,1752907844661,-460.0,0.00016986,2]
[373209640,1752907844671,-819.5,0.00016986,2]
[373209642,1752907844680,-460.0,0.00016986,2]
[373209644,1752907844690,-460.0,0.00016986,2]
[373209646,1752907844699,-3198.65,0.00016986,2]
[373209648,1752907844709,-460.0,0.00016986,2]
[373209650,1752907844719,-460.0,0.00016986,2]
[373209652,1752907844728,-460.0,0.00016986,2]
[373209654,1752907844738,-460.0,0.00016986,2]
[373209656,1752907844747,-1266.66,0.00016986,2]
[373209658,1752907844757,-1848.02,0.00016986,2]
[373209660,1752907844766,-579.8,0.00016986,2]
[373209662,1752907844776,-630.59,0.00016986,2]
[373209664,1752907844785,-460.0,0.00016986,2]
[373209665,1752907844794,-460.0,0.00016986,2]
[373209668,1752907844804,-464.63859633,0.00016986,2]
[373209669,1752907844813,-460.0,0.00016986,2]
[373209671,1752907844822,-2194.67,0.00016986,2]
[373209673,1752907844832,-460.0,0.00016986,2]
[373209675,1752907844841,-460.0,0.00016986,2]
[373209677,1752907844850,-460.0,0.00016986,2]
[373209679,1752907844860,-460.0,0.00016986,2]
[373209681,1752907844869,-517.047507,0.00016986,2]
[373209683,1752907844878,-7435.29,0.00016986,2]
[373209685,1752907844888,-1136.64,0.00016986,2]
[373209687,1752907844897,-460.0,0.00016986,2]
[373209689,1752907844907,-460.0,0.00016986,2]
[373209691,1752907844916,-460.0,0.00016986,2]
[373209693,1752907844926,-460.0,0.00016986,2]
[373209695,1752907844935,-460.0,0.00016986,2]
[373209697,1752907844945,-761.71,0.00016986,2]
[373209699,1752907844954,-265.25136343,0.00016986,2]
[373209701,1752907844963,-684.42,0.00016986,2]
[373209703,1752907844973,-460.0,0.00016986,2]
[373209705,1752907844983,-460.0,0.00016986,2]
[373209707,1752907844992,-460.0,0.00016986,2]
[373209709,1752907845002,-460.0,0.00016986,2]
[373209711,1752907845011,-460.0,0.00016986,2]
[373209713,1752907845021,-460.0,0.00016986,2]
[373209715,1752907845030,-541.94641902,0.00016986,2]
[373209717,1752907845040,-460.0,0.00016986,2]
[373209719,1752907845049,-727.96,0.00016986,2]
[373209721,1752907845059,-460.0,0.00016986,2]
[373209723,1752907845069,-460.0,0.00016986,2]
[373209725,1752907845078,-705.88,0.00016986,2]
[373209727,1752907845088,-1405.27,0.00016986,2]
[373209729,1752907845097,-460.0,0.00016986,2]
[373209731,1752907845106,-4383.08,0.00016986,2]
[373209733,1752907845116,-2778.31,0.00016986,2]
[373209735,1752907845126,-460.0,0.00016986,2]
[373209737,1752907845136,-677.34,0.00016986,2]
[373209739,1752907845145,-692.73,0.00016986,2]
[373209741,1752907845159,-460.0,0.00016986,2]
[373209743,1752907845169,-460.0,0.00016986,2]
[373209745,1752907845178,-460.0,0.00016986,2]
[373209747,1752907845188,-460.0,0.00016986,2]
[373209750,1752907845198,-460.0,0.00016986,2]
[373209752,1752907845208,-460.0,0.00016986,2]
[373209754,1752907845219,-853.43,0.00016986,2]
[373209756,1752907845231,-561.34,0.00016986,2]
[373209758,1752907845241,-963.81,0.00016986,2]
[373209759,1752907845250,-557.4939387,0.00016986,2]
[373209762,1752907845259,-460.0,0.00016986,2]
[373209763,1752907845270,-460.0,0.00016986,2]
[373209766,1752907845280,-460.0,0.00016986,2]
[373209768,1752907845289,-460.0,0.00016986,2]
[373209770,1752907845301,-641.44,0.00016986,2]
[373209772,1752907845310,-460.0,0.00016986,2]
[373209774,1752907845320,-460.0,0.00016986,2]
[373209776,1752907845331,-460.0,0.00016986,2]
[373209778,1752907845340,-460.0,0.00016986,2]
[373209780,1752907845350,-460.0,0.00016986,2]
[373209782,1752907845359,-529.8,0.00016986,2]
[373209784,1752907845368,-520.08,0.00016986,2]
[373209786,1752907845377,-1547.66,0.00016986,2]
[373209788,1752907845388,-460.0,0.00016986,2]
[373209790,1752907845397,-2037.7,0.00016986,2]
[373209792,1752907845407,-460.0,0.00016986,2]
[373209794,1752907845416,-460.0,0.00016986,2]
[373209796,1752907845426,-460.0,0.00016986,2]
[373209798,1752907845438,-2781.98,0.00016986,2]
[373209800,1752907845449,-460.0,0.00016986,2]
[373209802,1752907845458,-460.0,0.00016986,2]
[373209805,1752907845467,-460.0,0.00016986,2]
[373209808,1752907845477,-295.66129166,0.00016986,2]
[373209810,1752907845487,-460.0,0.00016986,2]
[373209813,1752907845497,-1565.73,0.00016986,2]
[373209816,1752907845506,-460.0,0.00016986,2]
[373209818,1752907845516,-460.0,0.00016986,2]
[373209820,1752907845525,-976.4,0.00016986,2]
[373209822,1752907845534,-460.0,0.00016986,2]
[373209824,1752907845543,-500.0,0.00016999,2]
[373209826,1752907845553,-500.0,0.00016999,2]
[373209828,1752907845563,-213.3,0.00016999,2]
[373209830,1752907845572,-460.0,0.00017158,2]
[373209832,1752907845582,-460.0,0.00017158,2]
[373209834,1752907845591,-460.0,0.00017158,2]
[373209836,1752907845601,-460.0,0.00017158,2]
[373209838,1752907845610,-460.0,0.00017158,2]
[373209840,1752907845620,-460.0,0.00017158,2]
[373209842,1752907845629,-5224.8904645,0.0001721,2]
[373209845,1752907845639,-151.0,0.00017259,2]
[373209848,1752907845649,-500.0,0.00017259,2]
[373209851,1752907845659,-151.67952302,0.00017259,2]
[373209854,1752907845668,-151.0,0.00017259,2]
[373209856,1752907845678,-500.0,0.00017259,2]
[373209882,1752907845796,-500.0,0.00017259,2]
[373209884,1752907845807,-1682.42974324,0.00017259,2]
[373209886,1752907845816,-1682.42974324,0.00017259,2]
[373209888,1752907845825,-1682.42974324,0.00017259,2]
[373209890,1752907845835,-482.686682,0.00017259,2]
[373209893,1752907845844,-1682.42974324,0.00017259,2]
[373209896,1752907845854,-500.0,0.00017259,2]
[373209899,1752907845863,-1682.42974324,0.00017259,2]
[373209902,1752907845873,-1682.42974324,0.00017259,2]
[373209905,1752907845883,-1682.42974324,0.00017259,2]
[373209908,1752907845892,-1682.42974324,0.00017259,2]
[373209911,1752907845902,-1682.42974324,0.00017259,2]
[373209914,1752907845912,-1682.42974324,0.00017259,2]
[373209917,1752907845922,-1682.42974324,0.00017259,2]
[373209920,1752907845932,-1682.42974324,0.00017259,2]
[373209923,1752907845941,-441.0,0.0001726,2]
[373209926,1752907845950,-292.0,0.0001726,2]
[373209929,1752907845960,-350.784375,0.0001726,2]
[373209932,1752907845970,-460.0,0.0001726,2]
[373209935,1752907845980,-460.0,0.0001726,2]
[373209937,1752907845991,-460.0,0.0001726,2]
[373209939,1752907846002,-340.24355113,0.0001726,2]
[373209941,1752907846012,-924.29,0.0001726,2]
[373209943,1752907846021,-460.0,0.0001726,2]
[373209945,1752907846031,-460.0,0.0001726,2]
[373209947,1752907846040,-460.0,0.0001726,2]
[373209949,1752907846050,-475.19,0.0001726,2]
[373209951,1752907846059,-460.0,0.0001726,2]
[373209953,1752907846069,-460.0,0.0001726,2]
[373209955,1752907846078,-460.0,0.0001726,2]
[373209957,1752907846088,-460.0,0.0001726,2]
[373209959,1752907846097,-460.0,0.0001726,2]
[373209961,1752907846106,-460.0,0.0001726,2]
[373209962,1752907846116,-460.0,0.0001726,2]
[373209963,1752907846125,-460.0,0.0001726,2]
[373209964,1752907846134,-433.80641339,0.0001726,2]
[373209965,1752907846144,-460.0,0.0001726,2]
[373209966,1752907846153,-639.44,0.0001726,2]
[373209967,1752907846162,-460.0,0.0001726,2]
[373209969,1752907846172,-460.0,0.0001726,2]
[373209971,1752907846181,-464.0650274,0.0001726,2]
[373209973,1752907846191,-460.0,0.0001726,2]
[373209975,1752907846200,-460.0,0.0001726,2]
[373209977,1752907846209,-460.0,0.0001726,2]
[373209979,1752907846222,-460.0,0.0001726,2]
[373209981,1752907846233,-460.0,0.0001726,2]
[373209983,1752907846244,-460.0,0.0001726,2]
[373209985,1752907846253,-460.0,0.0001726,2]
[373209987,1752907846263,-460.0,0.0001726,2]
[373209989,1752907846273,-460.0,0.0001726,2]
[373209991,1752907846283,-463.89583808,0.0001726,2]
[373209994,1752907846292,-460.0,0.0001726,2]
[373209996,1752907846302,-460.0,0.0001726,2]
[373209997,1752907846311,-517.70298011,0.0001726,2]
[373209999,1752907846322,-460.0,0.0001726,2]
[373210001,1752907846331,-460.0,0.0001726,2]
[373210004,1752907846341,-460.0,0.0001726,2]
[373210005,1752907846350,-460.0,0.0001726,2]
[373210008,1752907846360,-460.0,0.0001726,2]
[373210010,1752907846370,-460.0,0.0001726,2]
[373210012,1752907846379,-460.0,0.0001726,2]
[373210014,1752907846389,-460.0,0.0001726,2]
[373210016,1752907846398,-460.0,0.0001726,2]
[373210018,1752907846408,-460.0,0.0001726,2]
[373210020,1752907846417,-460.0,0.0001726,2]
[373210022,1752907846427,-460.0,0.0001726,2]
[373210024,1752907846436,-460.0,0.0001726,2]
[373210026,1752907846445,-460.0,0.0001726,2]
[373210028,1752907846455,-460.0,0.0001726,2]
[373210030,1752907846465,-207.72953142,0.0001726,2]
[373210032,1752907846475,-460.0,0.0001726,2]
[373210034,1752907846484,-460.0,0.0001726,2]
[373210036,1752907846494,-460.0,0.0001726,2]
[373210039,1752907846514,-460.0,0.0001726,2]
[373210041,1752907846524,-460.0,0.0001726,2]
[373210043,1752907846535,-460.0,0.0001726,2]
[373210045,1752907846545,-460.0,0.0001726,2]
[373210047,1752907846555,-460.0,0.0001726,2]
[373210049,1752907846567,-299.00333731,0.0001726,2]
[373210051,1752907846577,-575.94,0.0001726,2]
[373210053,1752907846587,-478.04,0.0001726,2]
[373210055,1752907846598,-460.0,0.0001726,2]
[373210058,1752907846608,-460.0,0.0001726,2]
[373210060,1752907846618,-460.0,0.0001726,2]
[373210062,1752907846628,-460.0,0.0001726,2]
[373210064,1752907846638,-460.0,0.0001726,2]
[373210066,1752907846648,-460.0,0.0001726,2]
[373210068,1752907846658,-468.36982263,0.0001726,2]
[373210070,1752907846668,-460.0,0.0001726,2]
[373210072,1752907846678,-494.88075402,0.0001726,2]
[373210074,1752907846690,-234.11569496,0.0001726,2]
[373210076,1752907846701,-460.0,0.0001726,2]
[373210078,1752907846711,-460.0,0.0001726,2]
[373210080,1752907846721,-460.0,0.0001726,2]
[373210082,1752907846731,-460.0,0.0001726,2]
[373210085,1752907846741,-460.0,0.0001726,2]
[373210087,1752907846751,-508.05,0.0001726,2]
[373210089,1752907846761,-460.0,0.0001726,2]
[373210091,1752907846771,-439.57985123,0.0001726,2]
[373210093,1752907846781,-3168.93,0.0001726,2]
[373210095,1752907846791,-460.0,0.0001726,2]
[373210097,1752907846801,-460.0,0.0001726,2]
[373210099,1752907846811,-460.0,0.0001726,2]
[373210101,1752907846821,-3148.5,0.0001726,2]
[373210103,1752907846831,-460.0,0.0001726,2]
[373210105,1752907846841,-629.76,0.0001726,2]
[373210107,1752907846851,-499.24,0.0001726,2]
[373210110,1752907846861,-460.0,0.0001726,2]
[373210112,1752907846872,-792.23,0.0001726,2]
[373210114,1752907846882,-279.08270891,0.0001726,2]
[373210116,1752907846892,-460.0,0.0001726,2]
[373210118,1752907846902,-460.0,0.0001726,2]
[373210119,1752907846911,-460.0,0.0001726,2]
[373210122,1752907846920,-588.5,0.0001726,2]
[373210124,1752907846930,-205.45351343,0.0001726,2]
[373210126,1752907846940,-460.0,0.0001726,2]
[373210128,1752907846950,-460.0,0.0001726,2]
[373210130,1752907846959,-460.0,0.0001726,2]
[373210132,1752907846968,-460.0,0.0001726,2]
[373210134,1752907846978,-819.5,0.0001726,2]
[373210136,1752907846990,-3198.65,0.0001726,2]
[373210138,1752907847000,-460.0,0.0001726,2]
[373210140,1752907847010,-460.0,0.0001726,2]
[373210142,1752907847020,-460.0,0.0001726,2]
[373210144,1752907847030,-460.0,0.0001726,2]
[373210146,1752907847040,-1266.66,0.0001726,2]
[373210148,1752907847049,-1848.02,0.0001726,2]
[373210151,1752907847059,-579.8,0.0001726,2]
[373210153,1752907847069,-630.59,0.0001726,2]
[373210155,1752907847079,-460.0,0.0001726,2]
[373210157,1752907847089,-460.0,0.0001726,2]
[373210159,1752907847098,-460.0,0.0001726,2]
[373210161,1752907847108,-2194.67,0.0001726,2]
[373210163,1752907847118,-460.0,0.0001726,2]
[373210166,1752907847131,-460.0,0.0001726,2]
[373210168,1752907847141,-460.0,0.0001726,2]
[373210170,1752907847151,-460.0,0.0001726,2]
[373210172,1752907847161,-7435.29,0.0001726,2]
[373210174,1752907847170,-1136.64,0.0001726,2]
[373210176,1752907847180,-460.0,0.0001726,2]
[373210178,1752907847190,-460.0,0.0001726,2]
[373210180,1752907847199,-460.0,0.0001726,2]
[373210182,1752907847209,-460.0,0.0001726,2]
[373210184,1752907847220,-460.0,0.0001726,2]
[373210186,1752907847231,-761.71,0.0001726,2]
[373210188,1752907847243,-684.42,0.0001726,2]
[373210190,1752907847252,-460.0,0.0001726,2]
[373210192,1752907847262,-460.0,0.0001726,2]
[373210194,1752907847272,-493.83869931,0.0001726,2]
[373210196,1752907847282,-460.0,0.0001726,2]
[373210198,1752907847292,-460.0,0.0001726,2]
[373210200,1752907847303,-460.0,0.0001726,2]
[373210202,1752907847313,-460.0,0.0001726,2]
[373210204,1752907847323,-727.96,0.0001726,2]
[373210206,1752907847333,-460.0,0.0001726,2]
[373210208,1752907847342,-460.0,0.0001726,2]
[373210211,1752907847352,-705.88,0.0001726,2]
[373210213,1752907847362,-1405.27,0.0001726,2]
[373210215,1752907847372,-460.0,0.0001726,2]
[373210217,1752907847382,-4383.08,0.0001726,2]
[373210219,1752907847392,-2778.31,0.0001726,2]
[373210221,1752907847401,-460.0,0.0001726,2]
[373210223,1752907847411,-677.34,0.0001726,2]
[373210225,1752907847421,-692.73,0.0001726,2]
[373210227,1752907847431,-460.0,0.0001726,2]
[373210229,1752907847441,-460.0,0.0001726,2]
[373210231,1752907847450,-460.0,0.0001726,2]
[373210233,1752907847459,-460.0,0.0001726,2]
[373210235,1752907847469,-460.0,0.0001726,2]
[373210237,1752907847479,-460.0,0.0001726,2]
[373210239,1752907847489,-853.43,0.0001726,2]
[373210241,1752907847500,-561.34,0.0001726,2]
[373210243,1752907847510,-963.81,0.0001726,2]
[373210245,1752907847520,-460.0,0.0001726,2]
[373210247,1752907847530,-460.0,0.0001726,2]
[373210249,1752907847539,-641.44,0.0001726,2]
[373210252,1752907847550,-460.0,0.0001726,2]
[373210254,1752907847559,-460.0,0.0001726,2]
[373210256,1752907847569,-460.0,0.0001726,2]
[373210258,1752907847578,-460.0,0.0001726,2]
[373210260,1752907847590,-460.0,0.0001726,2]
[373210262,1752907847600,-529.8,0.0001726,2]
[373210264,1752907847610,-1547.66,0.0001726,2]
[373210266,1752907847620,-520.08,0.0001726,2]
[373210268,1752907847630,-460.0,0.0001726,2]
[373210270,1752907847639,-2037.7,0.0001726,2]
[373210272,1752907847649,-460.0,0.0001726,2]
[373210274,1752907847659,-460.0,0.0001726,2]
[373210276,1752907847669,-2781.98,0.0001726,2]
[373210278,1752907847679,-460.0,0.0001726,2]
[373210280,1752907847688,-460.0,0.0001726,2]
[373210282,1752907847698,-460.0,0.0001726,2]
[373210284,1752907847707,-460.0,0.0001726,2]
[373210286,1752907847718,-1565.73,0.0001726,2]
[373210289,1752907847727,-460.0,0.0001726,2]
[373210291,1752907847737,-460.0,0.0001726,2]
[373210293,1752907847747,-976.4,0.0001726,2]
[373210295,1752907847756,-460.0,0.0001726,2]
[373210297,1752907847766,-186.87789923,0.0001726,3]
[373210299,1752907847775,-500.0,0.00017353,2]
[373210301,1752907847786,-500.0,0.00017353,2]
[373210303,1752907847797,-500.0,0.00017353,2]
[373210305,1752907847807,-300.0,0.00017385,2]
[373210307,1752907847816,-464.20384067,0.00017432,2]
[373210309,1752907847826,-460.0,0.00017432,2]
[373210311,1752907847835,-460.0,0.00017432,2]
[373210313,1752907847845,-460.0,0.00017432,2]
[373210315,1752907847855,-460.0,0.00017432,2]
[373210317,1752907847864,-1932.18653262,0.00017445,2]
[373210319,1752907847874,-151.0,0.000175,2]
[373210321,1752907847884,-329.0,0.0001752,2]
[373210323,1752907847893,-564.31978639,0.00017521,2]
[373210325,1752907847903,-911.94009619,0.00017521,2]
[373210327,1752907847913,-1000.0,0.00017521,2]
[373210329,1752907847923,-5224.8904645,0.00017521,2]
[373210331,1752907847933,-505.62297815,0.0001753,2]
[373210333,1752907847943,-198.0,0.00017533,2]
[373210335,1752907847953,-500.0,0.00017533,2]
[373210337,1752907847963,-396.0,0.00017533,2]
[373210339,1752907847972,-441.0,0.00017534,2]
[373210341,1752907847982,-460.0,0.00017534,2]
[373210343,1752907847993,-460.0,0.00017534,2]
[373210345,1752907848002,-924.29,0.00017534,2]
[373210348,1752907848012,-460.0,0.00017534,2]
[373210350,1752907848022,-460.0,0.00017534,2]
[373210352,1752907848032,-460.0,0.00017534,2]
[373210353,1752907848041,-475.19,0.00017534,2]
[373210356,1752907848050,-460.0,0.00017534,2]
[373210358,1752907848060,-460.0,0.00017534,2]
[373210360,1752907848070,-460.0,0.00017534,2]
[373210362,1752907848080,-460.0,0.00017534,2]
[373210364,1752907848089,-460.0,0.00017534,2]
[373210366,1752907848099,-460.0,0.00017534,2]
[373210368,1752907848108,-460.0,0.00017534,2]
[373210370,1752907848118,-460.0,0.00017534,2]
[373210372,1752907848128,-449.78925658,0.00017534,2]
[373210374,1752907848138,-639.44,0.00017534,2]
[373210376,1752907848148,-460.0,0.00017534,2]
[373210378,1752907848158,-460.0,0.00017534,2]
[373210380,1752907848168,-460.0,0.00017534,2]
[373210382,1752907848177,-460.0,0.00017534,2]
[373210384,1752907848187,-460.0,0.00017534,2]
[373210386,1752907848198,-460.0,0.00017534,2]
[373210388,1752907848207,-460.0,0.00017534,2]
[373210390,1752907848217,-179.94604781,0.00017534,2]
[373210392,1752907848231,-460.0,0.00017534,2]
[373210395,1752907848242,-227.46535831,0.00017534,2]
[373210397,1752907848252,-460.0,0.00017534,2]
[373210399,1752907848262,-460.0,0.00017534,2]
[373210401,1752907848273,-460.0,0.00017534,2]
[373210403,1752907848283,-460.0,0.00017534,2]
[373210405,1752907848292,-460.0,0.00017534,2]
[373210407,1752907848302,-460.0,0.00017534,2]
[373210409,1752907848312,-460.0,0.00017534,2]
[373210411,1752907848322,-460.0,0.00017534,2]
[373210413,1752907848332,-460.0,0.00017534,2]
[373210415,1752907848342,-460.0,0.00017534,2]
[373210417,1752907848352,-460.0,0.00017534,2]
[373210419,1752907848361,-460.0,0.00017534,2]
[373210421,1752907848371,-460.0,0.00017534,2]
[373210423,1752907848381,-460.0,0.00017534,2]
[373210425,1752907848391,-460.0,0.00017534,2]
[373210427,1752907848401,-460.0,0.00017534,2]
[373210429,1752907848410,-460.0,0.00017534,2]
[373210431,1752907848420,-460.0,0.00017534,2]
[373210433,1752907848430,-460.0,0.00017534,2]
[373210435,1752907848440,-460.0,0.00017534,2]
[373210438,1752907848450,-575.94,0.00017534,2]
[373210440,1752907848459,-460.0,0.00017534,2]
[373210441,1752907848468,-460.0,0.00017534,2]
[373210443,1752907848478,-460.0,0.00017534,2]
[373210445,1752907848488,-460.0,0.00017534,2]
[373210467,1752907848687,-460.0,0.00017534,2]
[373210470,1752907848698,-460.0,0.00017534,2]
[373210472,1752907848708,-460.0,0.00017534,2]
[373210474,1752907848718,-460.0,0.00017534,2]
[373210476,1752907848728,-490.7042202,0.00017534,2]
[373210478,1752907848739,-508.05,0.00017534,2]
[373210480,1752907848754,-460.0,0.00017534,2]
[373210482,1752907848767,-3168.93,0.00017534,2]
[373210484,1752907848776,-460.0,0.00017534,2]
[373210486,1752907848786,-460.0,0.00017534,2]
[373210488,1752907848796,-460.0,0.00017534,2]
[373210490,1752907848805,-3148.5,0.00017534,2]
[373210492,1752907848816,-629.76,0.00017534,2]
[373210494,1752907848825,-499.24,0.00017534,2]
[373210496,1752907848835,-792.23,0.00017534,2]
[373210498,1752907848845,-233.40014636,0.00017534,2]
[373210500,1752907848865,-460.0,0.00017534,2]